bitfinex-derivatives/quotes_BTCF0:USTF0_20240814
["timestamp","ask_amount","ask_price","bid_price","bid_amount"]
[1723644425737,0.0001614,59377.0,59369.0,0.3608]
[1723644425938,0.0001614,59377.0,59376.0,0.084174]
[1723644427552,0.0001614,59377.0,59376.0,0.168348]
[1723644427845,0.0001614,59377.0,59376.0,0.673588]
[1723644428044,0.0001614,59377.0,59376.0,0.589414]
[1723644428243,0.0001614,59377.0,59376.0,0.989414]
[1723644428440,0.0001614,59377.0,59376.0,0.084174]
[1723644428645,0.0011614,59377.0,59376.0,0.084174]
[1723644429237,0.0011614,59377.0,59374.0,0.3608]
[1723644429436,0.0011614,59377.0,59375.0,0.084175]
[1723644429640,0.0011614,59377.0,59376.0,0.084174]
[1723644430935,0.00025255,59378.0,59376.0,0.084174]
[1723644431144,0.00025255,59378.0,59377.0,0.084173]
[1723644432746,0.00025255,59378.0,59374.0,0.3608]
[1723644432950,0.084174,59376.0,59369.0,0.3608]
[1723644433141,0.00125255,59378.0,59369.0,0.3608]
[1723644433343,0.00125255,59378.0,59377.0,0.084173]
[1723644433850,0.00125255,59378.0,59377.0,0.444973]
[1723644434046,0.00125255,59378.0,59377.0,0.084173]
[1723644434247,0.00125255,59378.0,59377.0,0.168346]
[1723644434462,0.3608,59397.0,59377.0,0.168346]
[1723644434463,0.3608,59397.0,59394.0,0.084148]
[1723644434744,0.3608,59397.0,59386.0,0.3608]
[1723644434745,0.084156,59389.0,59386.0,0.3608]
[1723644435147,0.3608,59387.0,59380.0,0.084168]
[1723644435339,0.3608,59387.0,59386.0,0.08416]
[1723644436644,0.00782212,59389.0,59386.0,0.08416]
[1723644436645,0.00025255,59389.0,59386.0,0.08416]
[1723644436859,0.0076788,59407.0,59395.0,0.084147]
[1723644437148,0.3608,59407.0,59396.0,0.084145]
[1723644437353,0.3608,59407.0,59406.0,0.084132]
[1723644437551,0.3608,59407.0,59402.0,0.084137]
[1723644437850,0.3608,59407.0,59393.0,0.3608]
[1723644437851,0.084134,59405.0,59403.0,0.084136]
[1723644438050,0.084134,59405.0,59393.0,0.3608]
[1723644438051,0.084123,59413.0,59402.0,0.3608]
[1723644438255,0.3608,59410.0,59395.0,0.084147]
[1723644438550,0.3608,59410.0,59408.0,0.084128]
[1723644438752,0.3608,59410.0,59409.0,0.084128]
[1723644438753,0.00025255,59410.0,59409.0,0.084128]
[1723644438951,0.36105255,59410.0,59409.0,0.084128]
[1723644439253,0.00025255,59410.0,59409.0,0.084128]
[1723644440842,0.00025255,59410.0,59409.0,0.673216]
[1723644441249,0.00025255,59410.0,59409.0,0.084128]
[1723644441455,0.00025255,59410.0,59409.0,0.589088]
[1723644441648,0.00025255,59410.0,59409.0,0.084128]
[1723644442454,1e-08,59410.0,59409.0,1.073216]
[1723644442656,0.00775332,59415.0,59414.0,0.08412]
[1723644442847,0.3608,59428.0,59414.0,0.08412]
[1723644442848,0.3608,59428.0,59414.0,0.3608]
[1723644443054,0.084118,59416.0,59414.0,0.3608]
[1723644443356,0.3608,59428.0,59415.0,0.084119]
[1723644443551,0.3608,59428.0,59419.0,0.3608]
[1723644443750,0.08411,59422.0,59419.0,0.3608]
[1723644444049,0.444898,59430.0,59419.0,0.3608]
[1723644444252,0.084104,59426.0,59423.0,0.084106]
[1723644444557,0.00025255,59427.0,59419.0,0.444913]
[1723644444856,0.00025255,59427.0,59419.0,0.3608]
[1723644445761,0.00025255,59427.0,59426.0,0.3608]
[1723644445953,0.00840229,59441.0,59440.0,0.084084]
[1723644446152,0.3608,59455.0,59454.0,0.084064]
[1723644446750,0.00792441,59461.0,59460.0,0.084055]
[1723644446949,0.00821114,59483.0,59456.0,0.3608]
[1723644447156,0.3608,59474.0,59461.0,0.3608]
[1723644447461,0.00025232,59466.0,59465.0,0.084048]
[1723644447859,0.00025232,59466.0,59461.0,0.3608]
[1723644448167,0.00025232,59466.0,59465.0,0.084048]
[1723644449160,0.3608,59474.0,59473.0,0.084037]
[1723644449358,0.00612998,59477.0,59467.0,0.3608]
[1723644449556,0.3608,59487.0,59479.0,0.084028]
[1723644449862,0.3608,59480.0,59477.0,0.084031]
[1723644450058,0.3608,59480.0,59473.0,0.3608]
[1723644450262,0.3608,59481.0,59480.0,0.084027]
[1723644450468,0.36708149,59487.0,59486.0,0.084019]
[1723644450469,0.00628149,59487.0,59486.0,0.084019]
[1723644450765,0.3608,59488.0,59487.0,0.084017]
[1723644450960,0.3608,59488.0,59481.0,0.084025]
[1723644451264,0.3608,59488.0,59486.0,0.084019]
[1723644451462,0.00025232,59492.0,59489.0,0.084013]
[1723644451662,0.00025232,59492.0,59479.0,0.00025232]
[1723644451663,0.3608,59490.0,59484.0,0.084021]
[1723644452167,0.3608,59485.0,59479.0,0.00025232]
[1723644452461,0.444827,59480.0,59479.0,0.00025232]
[1723644452861,1.349187,59480.0,59479.0,0.00025232]
[1723644453051,1.26516,59480.0,59467.0,0.3608]
[1723644453257,0.3608,59474.0,59467.0,0.3608]
[1723644453462,0.084041,59471.0,59467.0,0.3608]
[1723644453659,0.084033,59476.0,59468.0,0.3608]
[1723644453961,0.084043,59469.0,59468.0,0.3608]
[1723644454364,0.444836,59474.0,59468.0,0.3608]
[1723644454553,0.3608,59474.0,59468.0,0.444844]
[1723644454754,0.3608,59474.0,59468.0,0.3608]
[1723644454966,0.08404,59471.0,59468.0,0.3608]
[1723644455159,0.084041,59470.0,59468.0,0.3608]
[1723644455670,0.36105232,59474.0,59468.0,0.3608]
[1723644456261,0.3608,59469.0,59450.0,0.0001709]
[1723644456457,0.3608,59451.0,59434.0,0.00844215]
[1723644456662,0.3608,59445.0,59433.0,0.3608]
[1723644456858,0.3608,59445.0,59434.0,0.00836732]
[1723644457162,0.3608,59445.0,59433.0,0.3608]
[1723644457358,0.3608,59451.0,59442.0,0.3608]
[1723644457563,0.3608,59470.0,59452.0,0.084067]
[1723644457866,0.3608,59470.0,59450.0,0.3608]
[1723644457867,0.084056,59460.0,59454.0,0.084064]
[1723644458174,0.00017876,59459.0,59450.0,0.3608]
[1723644458665,0.00017876,59459.0,59455.0,0.084062]
[1723644459067,0.00017876,59459.0,59455.0,0.084061]
[1723644459260,0.00017876,59459.0,59451.0,0.00025232]
[1723644460067,0.00017876,59459.0,59452.0,0.084065]
[1723644460256,0.08423576,59459.0,59452.0,0.084065]
[1723644460463,0.084059,59458.0,59452.0,0.084065]
[1723644460658,0.00637231,59459.0,59454.0,0.084064]
[1723644460869,0.00017876,59459.0,59458.0,0.084058]
[1723644461169,0.00025232,59467.0,59466.0,0.084047]
[1723644461469,0.001,59470.0,59469.0,0.084043]
[1723644461669,0.3608,59481.0,59480.0,0.084027]
[1723644461969,0.5882,59500.0,59480.0,0.084027]
[1723644461970,0.084009,59493.0,59480.0,0.3608]
[1723644462172,0.3608,59491.0,59480.0,0.444827]
[1723644462470,0.3608,59486.0,59474.0,0.3608]
[1723644462766,0.084014,59490.0,59474.0,0.3608]
[1723644462767,0.444813,59490.0,59474.0,0.3608]
[1723644462965,0.3608,59485.0,59483.0,0.084023]
[1723644463159,0.3608,59485.0,59480.0,0.00025232]
[1723644463361,0.444821,59485.0,59480.0,0.00025232]
[1723644463561,0.3608,59485.0,59480.0,0.00025232]
[1723644463774,0.3608,59485.0,59480.0,0.08427832]
[1723644463970,0.3608,59485.0,59481.0,0.084025]
[1723644464274,0.3608,59485.0,59480.0,0.08427932]
[1723644464473,0.36713753,59485.0,59480.0,0.00025232]
[1723644464669,0.084026,59481.0,59480.0,0.00025232]
[1723644466069,0.168052,59481.0,59480.0,0.00025232]
[1723644466274,0.084039,59472.0,59464.0,0.084049]
[1723644466578,0.084041,59471.0,59464.0,0.084049]
[1723644467083,0.3608,59466.0,59458.0,0.3608]
[1723644467378,0.084064,59454.0,59450.0,0.3608]
[1723644467671,0.084059,59458.0,59454.0,0.084063]
[1723644467872,0.084064,59454.0,59448.0,0.00025232]
[1723644468173,0.084064,59454.0,59437.0,0.3608]
[1723644468174,0.084065,59453.0,59437.0,0.3608]
[1723644468363,0.084065,59453.0,59433.0,0.00830006]
[1723644468364,0.084092,59434.0,59433.0,0.00830006]
[1723644468563,0.3608,59443.0,59431.0,0.3608]
[1723644468968,0.3608,59443.0,59426.0,0.00838595]
[1723644468969,0.3608,59433.0,59426.0,0.00838595]
[1723644469174,0.3608,59427.0,59426.0,0.00838595]
[1723644469566,0.00012371,59426.0,59424.0,0.00025232]
[1723644469773,0.3608,59425.0,59404.0,0.3608]
[1723644469979,0.3608,59425.0,59394.0,0.41089296]
[1723644469980,0.3608,59413.0,59394.0,0.41089296]
[1723644470179,0.3608,59402.0,59394.0,0.00016846]
[1723644470475,0.00016809,59401.0,59394.0,0.00016846]
[1723644470775,0.00016809,59401.0,59396.0,0.084146]
[1723644470962,0.084133,59405.0,59395.0,0.3608]
[1723644471170,0.00025232,59403.0,59394.0,0.36096846]
[1723644472175,0.08438832,59403.0,59394.0,0.36096846]
[1723644472473,0.00025232,59403.0,59395.0,0.084147]
[1723644472675,0.084138,59402.0,59394.0,0.36096846]
[1723644473076,0.36411264,59407.0,59394.0,0.36096846]
[1723644474066,0.001,59402.0,59394.0,0.36796846]
[1723644474378,0.001,59402.0,59399.0,0.3608]
[1723644474571,0.001,59402.0,59401.0,0.084139]
[1723644475170,0.00025232,59406.0,59405.0,0.084133]
[1723644475568,0.00025232,59406.0,59405.0,0.989133]
[1723644475971,0.3608,59414.0,59413.0,0.084122]
[1723644476270,0.00833218,59439.0,59404.0,0.3608]
[1723644476271,0.3608,59428.0,59412.0,0.3608]
[1723644476470,0.3608,59436.0,59424.0,0.3608]
[1723644476669,0.3608,59436.0,59412.0,0.8693]
[1723644476670,0.3608,59436.0,59426.0,0.3608]
[1723644476868,0.084093,59434.0,59429.0,0.084099]
[1723644477072,0.3608,59435.0,59426.0,0.3608]
[1723644477278,0.00025232,59437.0,59426.0,0.084103]
[1723644477481,0.00025232,59437.0,59428.0,0.084101]
[1723644477482,0.08434032,59437.0,59428.0,0.084101]
[1723644477679,0.08434032,59437.0,59425.0,0.00025232]
[1723644477680,0.00025232,59437.0,59425.0,0.00025232]
[1723644478183,0.00025232,59437.0,59436.0,0.084089]
[1723644478483,0.3608,59448.0,59447.0,0.084074]
[1723644478783,0.084086,59438.0,59429.0,0.00607335]
[1723644478982,0.084086,59438.0,59427.0,0.3608]
[1723644478983,0.3608,59437.0,59427.0,0.3608]
[1723644479177,0.3608,59437.0,59436.0,0.084089]
[1723644479495,0.3608,59448.0,59432.0,0.3608]
[1723644479687,0.3608,59455.0,59444.0,0.084077]
[1723644479869,0.084065,59454.0,59445.0,0.084076]
[1723644480074,0.084065,59454.0,59444.0,0.084077]
[1723644480279,0.36703799,59455.0,59437.0,0.3608]
[1723644480480,0.36703799,59455.0,59442.0,0.3608]
[1723644480683,0.084068,59451.0,59442.0,0.3608]
[1723644480984,0.36729031,59455.0,59449.0,0.084071]
[1723644481289,0.36729031,59455.0,59443.0,0.00025232]
[1723644481587,0.084074,59447.0,59443.0,0.00025232]
[1723644481886,0.3608,59451.0,59443.0,0.00025232]
[1723644482187,0.084075,59447.0,59443.0,0.00025232]
[1723644482383,0.084075,59446.0,59443.0,0.00025232]
[1723644482578,0.084078,59444.0,59443.0,0.00025232]
[1723644482777,0.084078,59444.0,59429.0,0.3608]
[1723644482778,0.084079,59443.0,59429.0,0.3608]
[1723644482982,0.084098,59430.0,59421.0,0.08411]
[1723644483181,0.084098,59430.0,59417.0,0.00845929]
[1723644483182,0.3608,59431.0,59407.0,0.3608]
[1723644483384,0.3608,59431.0,59418.0,0.084115]
[1723644483586,0.3608,59425.0,59413.0,0.3608]
[1723644483797,0.444913,59419.0,59413.0,0.3608]
[1723644484079,0.3608,59419.0,59413.0,0.3608]
[1723644484286,0.08412,59415.0,59413.0,0.3608]
[1723644484482,0.3608,59425.0,59416.0,0.084118]
[1723644484782,0.3608,59425.0,59413.0,0.3608]
[1723644484783,0.08411,59421.0,59413.0,0.36105232]
[1723644485286,0.00025232,59425.0,59424.0,0.084106]
[1723644485985,0.3608,59441.0,59440.0,0.084083]
[1723644486189,0.3608,59441.0,59427.0,0.3608]
[1723644486688,0.3608,59441.0,59440.0,0.084083]
[1723644486877,0.00627963,59442.0,59441.0,0.084082]
[1723644487078,0.00627963,59442.0,59441.0,0.748802]
[1723644487278,0.3608,59467.0,59441.0,1.06472]
[1723644487475,0.3608,59467.0,59454.0,0.3608]
[1723644488290,0.444846,59467.0,59460.0,0.084054]
[1723644488878,0.084048,59465.0,59460.0,0.084054]
[1723644489680,0.00025232,59466.0,59460.0,0.084054]
[1723644489877,0.00025232,59466.0,59461.0,0.084053]
[1723644490296,0.00025232,59466.0,59462.0,0.084052]
[1723644490778,0.00025232,59466.0,59455.0,0.00025232]
[1723644490990,0.084056,59460.0,59455.0,0.00025232]
[1723644491188,0.084056,59460.0,59433.0,0.0499245]
[1723644491189,0.3608,59456.0,59433.0,0.0499245]
[1723644491488,0.3608,59456.0,59426.0,0.3608]
[1723644491489,0.3608,59438.0,59426.0,0.3608]
[1723644491990,0.084094,59433.0,59426.0,0.3608]
[1723644492292,0.3608,59438.0,59426.0,0.3608]
[1723644492478,0.084098,59430.0,59426.0,0.3608]
[1723644492683,0.3608,59431.0,59423.0,0.084106]
[1723644492890,0.3608,59431.0,59424.0,0.00025232]
[1723644493393,0.3608,59431.0,59426.0,0.001]
[1723644493890,0.00025232,59435.0,59426.0,0.001]
[1723644494503,0.00025232,59435.0,59433.0,0.084093]
[1723644494986,0.00025232,59435.0,59434.0,0.50476]
[1723644495191,0.00025232,59435.0,59433.0,0.084093]
[1723644495401,0.3608,59457.0,59434.0,0.86556]
[1723644495687,0.3608,59457.0,59450.0,0.3608]
[1723644495889,0.3608,59457.0,59455.0,0.084062]
[1723644496091,0.3608,59467.0,59450.0,0.3608]
[1723644496296,0.3608,59467.0,59460.0,0.084055]
[1723644496483,0.3608,59474.0,59450.0,0.3608]
[1723644496484,0.444835,59474.0,59461.0,0.3608]
[1723644496680,0.00025232,59464.0,59461.0,0.3608]
[1723644496887,0.00025232,59464.0,59462.0,0.084052]
[1723644497390,0.00025232,59464.0,59461.0,0.3608]
[1723644498282,0.00025232,59464.0,59461.0,0.444853]
[1723644498483,0.00025232,59464.0,59461.0,0.3608]
[1723644498691,0.3608,59462.0,59455.0,0.3608]
[1723644498890,0.3608,59462.0,59457.0,0.084059]
[1723644499295,0.3608,59462.0,59453.0,0.00025232]
[1723644499489,0.3608,59462.0,59453.0,0.08431732]
[1723644499490,0.444852,59462.0,59453.0,0.08431732]
[1723644499685,0.444852,59462.0,59453.0,0.00025232]
[1723644499686,0.084054,59461.0,59453.0,0.00025232]
[1723644499887,0.00025232,59464.0,59460.0,0.001]
[1723644500089,0.3608,59461.0,59432.0,0.3608]
[1723644500289,0.3608,59447.0,59438.0,0.444886]
[1723644500495,0.3608,59447.0,59445.0,0.084075]
[1723644500697,0.3608,59447.0,59438.0,0.3608]
[1723644500698,0.3608,59454.0,59438.0,0.3608]
[1723644500898,0.3608,59454.0,59445.0,0.3608]
[1723644501092,0.3608,59456.0,59445.0,0.3608]
[1723644502010,0.36105232,59456.0,59445.0,0.3608]
[1723644502495,0.3608,59451.0,59445.0,0.3608]
[1723644502692,0.36105232,59456.0,59445.0,0.444876]
[1723644503095,0.3608,59451.0,59445.0,0.3608]
[1723644503502,0.084065,59453.0,59445.0,0.3608]
[1723644503805,0.084066,59452.0,59445.0,0.3608]
[1723644503999,0.01025232,59456.0,59445.0,0.3608]
[1723644504297,0.084064,59454.0,59445.0,0.3608]
[1723644504599,0.01025232,59456.0,59445.0,0.3608]
[1723644504804,0.3608,59451.0,59445.0,0.3608]
[1723644505196,0.3608,59451.0,59444.0,0.00025232]
[1723644505197,0.3608,59446.0,59432.0,0.066566]
[1723644505506,0.3608,59438.0,59430.0,0.3608]
[1723644506199,0.084093,59433.0,59430.0,0.3608]
[1723644506392,0.3608,59438.0,59430.0,0.3608]
[1723644506700,0.084088,59437.0,59430.0,0.3608]
[1723644506894,0.084089,59436.0,59428.0,0.13427682]
[1723644507095,0.084089,59436.0,59428.0,0.08435232]
[1723644507294,0.36704255,59438.0,59428.0,0.08435232]
[1723644507295,0.36704255,59438.0,59428.0,0.00025232]
[1723644507695,0.36704255,59438.0,59432.0,0.084093]
[1723644507901,0.36704255,59438.0,59428.0,0.00025232]
[1723644508191,0.011,59437.0,59436.0,0.084089]
[1723644508400,0.011,59437.0,59434.0,0.4107245]
[1723644508692,0.011,59437.0,59436.0,0.084089]
[1723644509600,0.00025232,59440.0,59439.0,0.084085]
[1723644509800,0.084069,59450.0,59439.0,0.427366]
[1723644509995,0.3608,59453.0,59445.0,0.05012799]
[1723644510310,0.4608,59453.0,59445.0,0.05012799]
[1723644510494,0.4608,59453.0,59444.0,0.3608]
[1723644510690,0.46584823,59453.0,59444.0,0.3608]
[1723644510900,0.46584823,59453.0,59440.0,0.05012799]
[1723644511102,0.46584823,59453.0,59443.0,0.00025232]
[1723644511600,0.084071,59449.0,59443.0,0.00025232]
[1723644511906,0.084073,59448.0,59443.0,0.00025232]
[1723644512393,0.01204823,59453.0,59452.0,0.084066]
[1723644512598,0.01304823,59453.0,59451.0,0.084067]
[1723644512903,0.008,59453.0,59452.0,0.084066]
[1723644513201,0.008,59453.0,59451.0,0.427366]
[1723644513401,0.00025232,59454.0,59453.0,0.084065]
[1723644513795,0.3608,59467.0,59466.0,0.084047]
[1723644514097,0.36565155,59467.0,59466.0,0.084047]
[1723644514305,0.00485155,59467.0,59466.0,0.084047]
[1723644514500,0.084038,59473.0,59463.0,0.3608]
[1723644514697,0.084038,59473.0,59469.0,0.3608]
[1723644515005,0.3608,59479.0,59469.0,0.3608]
[1723644515006,0.084038,59472.0,59469.0,0.3608]
[1723644515200,0.00514059,59474.0,59469.0,0.3608]
[1723644515396,0.00025232,59474.0,59473.0,0.084036]
[1723644515607,0.00025232,59474.0,59469.0,0.41092443]
[1723644516509,0.014,59472.0,59469.0,0.41192443]
[1723644516712,0.014,59472.0,59469.0,0.3618]
[1723644517200,0.098038,59472.0,59469.0,0.3618]
[1723644517404,0.3608,59471.0,59469.0,0.001]
[1723644517718,0.098038,59472.0,59469.0,0.001]
[1723644517896,0.014,59472.0,59469.0,0.001]
[1723644518097,0.014,59472.0,59469.0,0.05112443]
[1723644518408,0.014,59472.0,59469.0,0.085042]
[1723644518599,0.3608,59471.0,59469.0,0.001]
[1723644518801,0.3608,59471.0,59463.0,0.41092443]
[1723644519006,0.001,59470.0,59469.0,0.001]
[1723644519201,0.3618,59470.0,59469.0,0.001]
[1723644519601,0.445841,59470.0,59469.0,0.001]
[1723644519903,1.26628,59470.0,59462.0,0.00025232]
[1723644520115,1.26628,59470.0,59452.0,0.08268058]
[1723644520116,0.444851,59463.0,59454.0,4.3e-07]
[1723644520297,0.444851,59463.0,59439.0,0.02887068]
[1723644520298,0.084072,59448.0,59439.0,0.02887068]
[1723644520605,0.3608,59440.0,59426.0,0.0667769]
[1723644520810,0.3608,59440.0,59424.0,0.07512176]
[1723644520998,0.084087,59437.0,59423.0,0.0667769]
[1723644521197,0.3608,59438.0,59421.0,0.0667769]
[1723644521414,0.084087,59437.0,59429.0,0.084098]
[1723644521598,0.084087,59437.0,59421.0,0.00839472]
[1723644521800,0.084087,59437.0,59418.0,0.3608]
[1723644521801,0.988847,59437.0,59431.0,0.00025232]
[1723644522006,1.182934,59437.0,59431.0,0.00025232]
[1723644522396,0.194087,59437.0,59436.0,0.01418704]
[1723644522599,0.11,59437.0,59436.0,0.01418704]
[1723644522902,0.61476,59437.0,59431.0,0.00025232]
[1723644523098,0.0841,59428.0,59427.0,0.35122165]
[1723644523302,0.5549,59428.0,59427.0,0.13659243]
[1723644523599,1.4597,59428.0,59427.0,0.13659243]
[1723644524003,1.05983698,59428.0,59427.0,0.13659243]
[1723644524705,1.45983698,59428.0,59427.0,0.13659243]
[1723644525106,1.06083698,59428.0,59427.0,0.13659243]
[1723644525304,0.47193698,59428.0,59427.0,0.13659243]
[1723644526114,0.47695962,59428.0,59427.0,0.13659243]
[1723644526298,0.43095962,59428.0,59427.0,0.13659243]
[1723644527211,0.41695962,59428.0,59427.0,0.22069343]
[1723644527411,0.01513698,59428.0,59427.0,0.22069343]
[1723644528010,0.01513698,59428.0,59427.0,0.13659243]
[1723644528209,0.09923698,59428.0,59427.0,0.13659243]
[1723644528413,0.01513698,59428.0,59427.0,0.13659243]
[1723644529402,0.01513698,59428.0,59427.0,0.084101]
[1723644530002,0.02012338,59428.0,59427.0,0.084101]
[1723644530607,0.00113698,59428.0,59427.0,0.084101]
[1723644530906,0.01513698,59428.0,59427.0,0.084101]
[1723644531313,0.01513698,59428.0,59425.0,0.3608]
[1723644531513,0.3608,59419.0,59409.0,0.05799038]
[1723644531719,0.3608,59419.0,59379.0,0.08268058]
[1723644531720,0.3608,59405.0,59379.0,0.08268058]
[1723644531920,0.3608,59380.0,59379.0,0.084169]
[1723644532813,0.00025254,59385.0,59377.0,0.3608]
[1723644533022,0.00025254,59385.0,59384.0,0.444962]
[1723644533209,0.00043358,59385.0,59384.0,0.084162]
[1723644533606,0.00531713,59385.0,59384.0,0.589362]
[1723644534019,0.00531713,59385.0,59384.0,0.084162]
[1723644534408,0.36611713,59385.0,59384.0,0.084162]
[1723644535010,0.36711713,59385.0,59384.0,0.084162]
[1723644536415,0.36811713,59385.0,59384.0,0.084162]
[1723644537221,0.00731713,59385.0,59384.0,0.084162]
[1723644538316,0.3608,59386.0,59385.0,0.084161]
[1723644538526,0.084147,59395.0,59389.0,0.084155]
[1723644538813,0.084149,59394.0,59390.0,0.084154]
[1723644539218,0.00015099,59393.0,59390.0,0.084154]
[1723644539420,0.00015099,59393.0,59392.0,0.084151]
[1723644539617,0.36095099,59393.0,59392.0,0.084151]
[1723644540317,0.36095099,59393.0,59386.0,0.00025254]
[1723644540618,0.3608,59410.0,59409.0,0.084127]
[1723644541213,0.084127,59409.0,59405.0,0.084132]
[1723644541408,0.084128,59408.0,59405.0,0.084132]
[1723644541714,0.8658,59409.0,59401.0,0.00025254]
[1723644541907,0.3608,59402.0,59401.0,0.00025254]
[1723644542112,0.3608,59402.0,59381.0,0.3608]
[1723644542316,0.3608,59396.0,59386.0,0.00025254]
[1723644542620,0.3608,59396.0,59395.0,0.084147]
[1723644544118,0.3018813,59396.0,59395.0,0.084147]
[1723644544626,0.6626813,59396.0,59386.0,0.00025254]
[1723644544823,0.3018813,59396.0,59386.0,0.00025254]
[1723644545013,0.3018813,59396.0,59395.0,0.084147]
[1723644545210,0.3078813,59396.0,59395.0,0.084147]
[1723644545919,0.3078813,59396.0,59386.0,0.00025254]
[1723644546124,0.3078813,59396.0,59395.0,0.084147]
[1723644546727,0.00496565,59401.0,59396.0,0.50508]
[1723644546728,0.3608,59401.0,59396.0,0.50508]
[1723644547046,0.3608,59407.0,59406.0,0.084131]
[1723644547228,0.084115,59418.0,59417.0,0.084116]
[1723644547412,0.3608,59421.0,59405.0,0.3608]
[1723644547824,0.36578233,59421.0,59405.0,0.3608]
[1723644548024,0.00025254,59419.0,59418.0,0.084114]
[1723644548420,0.00025254,59419.0,59418.0,0.444914]
[1723644548617,0.00025254,59419.0,59418.0,0.084114]
[1723644549913,0.3608,59436.0,59435.0,0.08409]
[1723644550129,0.36577835,59436.0,59431.0,0.084096]
[1723644550321,0.084096,59431.0,59427.0,0.084101]
[1723644550518,0.36577835,59436.0,59426.0,0.3608]
[1723644551026,0.36577835,59436.0,59431.0,0.084096]
[1723644551219,0.36577835,59436.0,59426.0,0.3608]
[1723644551725,0.36577835,59436.0,59435.0,0.08409]
[1723644552126,0.37377835,59436.0,59435.0,0.08409]
[1723644552332,0.3688,59436.0,59435.0,0.08409]
[1723644553330,0.00016623,59437.0,59436.0,0.168178]
[1723644553520,0.00016623,59437.0,59436.0,0.084089]
[1723644554426,0.36096623,59437.0,59435.0,0.015]
[1723644554625,0.36096623,59437.0,59425.0,0.00025254]
[1723644554626,0.084103,59426.0,59425.0,0.00025254]
[1723644555526,0.3758,59436.0,59435.0,0.015]
[1723644555727,0.3758,59436.0,59435.0,0.099095]
[1723644556030,0.458894,59436.0,59435.0,0.001]
[1723644556226,0.963654,59436.0,59435.0,0.001]
[1723644556626,0.00506768,59437.0,59426.0,0.3608]
[1723644556834,0.3608,59433.0,59426.0,0.3608]
[1723644557235,0.3608,59427.0,59425.0,0.00125254]
[1723644557534,0.3608,59427.0,59398.0,0.3608]
[1723644557732,0.3608,59413.0,59412.0,0.08413]
[1723644558034,0.3608,59423.0,59406.0,0.3608]
[1723644558231,0.084106,59429.0,59406.0,0.3608]
[1723644558424,0.084106,59429.0,59412.0,0.3608]
[1723644558625,0.3608,59430.0,59412.0,0.3608]
[1723644558931,0.3608,59425.0,59412.0,0.3608]
[1723644559328,0.00025254,59423.0,59418.0,0.084121]
[1723644559631,0.00025254,59423.0,59412.0,0.00025254]
[1723644559632,0.3608,59419.0,59412.0,0.00025254]
[1723644559828,0.084125,59416.0,59412.0,0.00025254]
[1723644560033,0.444929,59413.0,59412.0,0.00025254]
[1723644560224,0.444929,59413.0,59392.0,0.3608]
[1723644560225,0.084146,59401.0,59392.0,0.3608]
[1723644560431,0.3608,59402.0,59397.0,0.084151]
[1723644560630,0.3608,59402.0,59392.0,0.3608]
[1723644560830,0.3608,59413.0,59392.0,0.3608]
[1723644561034,0.3608,59413.0,59408.0,0.084135]
[1723644561227,0.50938,59423.0,59392.0,0.3608]
[1723644561228,0.3608,59412.0,59397.0,0.444951]
[1723644561423,0.3608,59412.0,59411.0,0.084132]
[1723644561724,0.3608,59412.0,59405.0,0.00025254]
[1723644561725,0.084139,59406.0,59405.0,0.00025254]
[1723644562122,0.084133,59411.0,59405.0,0.00025254]
[1723644562325,0.3608,59412.0,59405.0,0.00025254]
[1723644562531,0.3618,59412.0,59407.0,0.084132]
[1723644562835,0.3618,59412.0,59405.0,0.00025254]
[1723644563132,0.3608,59407.0,59405.0,0.00025254]
[1723644563327,0.001,59406.0,59405.0,0.08438554]
[1723644563528,0.001,59406.0,59405.0,0.58938554]
[1723644564629,0.001,59406.0,59405.0,0.67351854]
[1723644564822,0.001,59406.0,59405.0,0.58938554]
[1723644565235,0.001,59406.0,59405.0,0.08438554]
[1723644565435,0.3608,59407.0,59406.0,0.08413]
[1723644566025,0.007,59412.0,59411.0,0.084123]
[1723644567537,0.008,59412.0,59411.0,0.084123]
[1723644568040,0.001,59412.0,59411.0,0.084123]
[1723644568427,0.00025254,59416.0,59415.0,0.084118]
[1723644568635,0.444888,59436.0,59431.0,0.084095]
[1723644568846,0.084084,59439.0,59425.0,0.084103]
[1723644569136,0.084084,59439.0,59424.0,0.3608]
[1723644569339,0.084085,59438.0,59424.0,0.3608]
[1723644569840,0.00025254,59437.0,59435.0,0.084088]
[1723644570037,0.00025254,59437.0,59436.0,0.084088]
[1723644570235,0.3608,59459.0,59452.0,0.084065]
[1723644570442,0.3608,59459.0,59436.0,0.3608]
[1723644570443,0.36617256,59459.0,59448.0,0.3608]
[1723644570741,0.084047,59465.0,59462.0,0.084051]
[1723644571240,0.3396,59478.0,59448.0,0.44886741]
[1723644571241,0.08403,59477.0,59469.0,0.084041]
[1723644571428,0.3608,59479.0,59464.0,0.3608]
[1723644571631,0.00016547,59469.0,59466.0,0.084045]
[1723644571940,0.00016547,59469.0,59464.0,0.3608]
[1723644572149,0.00016547,59469.0,59467.0,0.084043]
[1723644572731,0.3608,59468.0,59466.0,0.013]
[1723644572940,0.084044,59467.0,59466.0,0.013]
[1723644573142,0.3608,59468.0,59467.0,0.084044]
[1723644573446,0.0057372,59469.0,59467.0,0.084044]
[1723644573634,0.00016547,59469.0,59467.0,0.096044]
[1723644574539,0.00016547,59469.0,59468.0,0.084042]
[1723644575041,0.01416547,59469.0,59468.0,0.084042]
[1723644575839,0.00016547,59469.0,59468.0,0.084042]
[1723644576042,0.01416547,59469.0,59468.0,0.084042]
[1723644576744,0.01416547,59469.0,59468.0,0.093042]
[1723644577338,0.00534698,59477.0,59468.0,0.51348]
[1723644577649,0.3608,59481.0,59475.0,0.084032]
[1723644578035,0.36620509,59481.0,59468.0,0.009]
[1723644578242,0.36620509,59481.0,59443.0,0.09935093]
[1723644578243,0.3608,59472.0,59451.0,0.3608]
[1723644578536,0.3608,59460.0,59456.0,0.00025231]